fUSD/lending_fUSD_20241121
["ID","MTS","AMOUNT","RATE_DAILY","PERIOD"]
[342937783,1732211477049,-669.3,0.00041369,11]
[342937784,1732211477059,-500.0,0.00041369,11]
[342937785,1732211477069,-1678.44,0.00041369,11]
[342937786,1732211477078,-500.0,0.00041369,11]
[342937787,1732211477087,-500.0,0.00041369,11]
[342937788,1732211477096,-500.0,0.00041369,11]
[342937789,1732211477106,-500.0,0.00041369,11]
[342937790,1732211477120,-999.52,0.00041369,11]
[342937791,1732211477129,-1474.25,0.00041369,11]
[342937792,1732211477139,-1024.4,0.00041369,11]
[342937793,1732211477149,-1174.82,0.00041369,11]
[342937794,1732211477159,-500.0,0.00041369,11]
[342937795,1732211477169,-500.0,0.00041369,11]
[342937796,1732211477178,-500.0,0.00041369,11]
[342937797,1732211477188,-500.0,0.00041369,11]
[342937798,1732211477198,-637.7,0.00041369,11]
[342937799,1732211477208,-500.0,0.00041369,11]
[342937800,1732211477218,-500.0,0.00041369,11]
[342937801,1732211477228,-1921.22,0.00041369,11]
[342937802,1732211477238,-500.0,0.00041369,11]
[342937803,1732211477248,-763.05,0.00041369,11]
[342937804,1732211477258,-761.29,0.00041369,11]
[342937805,1732211477268,-548.27,0.00041369,11]
[342937806,1732211477278,-500.0,0.00041369,11]
[342937807,1732211477289,-579.96,0.00041369,11]
[342937808,1732211477300,-500.0,0.00041369,11]
[342937809,1732211477310,-500.0,0.00041369,11]
[342937810,1732211477319,-518.1,0.00041369,11]
[342937811,1732211477329,-556.45,0.00041369,11]
[342937812,1732211477339,-500.0,0.00041369,11]
[342937813,1732211477349,-500.0,0.00041369,7]
[342937814,1732211477358,-643.58,0.00041369,11]
[342937815,1732211477368,-987.26,0.00041369,11]
[342937816,1732211477378,-319.51872023,0.00041369,11]
[342937817,1732211477388,-681.75,0.00041369,11]
[342937818,1732211477397,-566.21,0.00041369,11]
[342937819,1732211477407,-500.0,0.00041369,11]
[342937820,1732211477417,-500.0,0.00041369,11]
[342937821,1732211477427,-2074.05,0.00041369,11]
[342937822,1732211477438,-500.0,0.00041369,11]
[342937823,1732211477448,-7086.76,0.00041369,2]
[342937824,1732211477458,-500.0,0.00041369,11]
[342937825,1732211477468,-5640.54,0.00041369,11]
[342937826,1732211477478,-536.96,0.00041369,11]
[342937827,1732211477488,-500.0,0.00041369,11]
[342937828,1732211477498,-500.0,0.00041369,11]
[342937829,1732211477508,-500.0,0.00041369,11]
[342937830,1732211477518,-500.0,0.00041369,11]
[342937831,1732211477528,-626.13,0.00041369,11]
[342937832,1732211477540,-500.0,0.00041369,11]
[342937833,1732211477549,-500.0,0.00041369,11]
[342937834,1732211477559,-1000.0,0.00041399,2]
[342937835,1732211477569,-2110.0,0.00041417,30]
[342937836,1732211477579,-150.0,0.00041456,2]
[342937837,1732211477588,-150.0,0.00041479,2]
[342937838,1732211477598,-150.0,0.0004148,2]
[342937839,1732211477607,-150.0,0.00041495,2]
[342937840,1732211477617,-29934.50447449,0.000415,2]
[342937841,1732211477627,-716.72,0.000415,60]
[342937842,1732211477637,-19346.05154334,0.000415,2]
[342937843,1732211477647,-875.31241,0.000415,41]
[342937844,1732211477658,-150.0,0.00041508,2]
[342937845,1732211477668,-150.0,0.0004151,2]
[342937846,1732211477677,-150.0,0.00041513,2]
[342937847,1732211477689,-150.0,0.00041531,2]
[342937848,1732211477699,-150.0,0.00041533,2]
[342937849,1732211477709,-150.0,0.00041535,2]
[342937850,1732211477719,-150.0,0.00041537,2]
[342937851,1732211477729,-150.0,0.00041547,2]
[342937852,1732211477739,-150.0,0.00041549,2]
[342937853,1732211477749,-150.0,0.0004155,2]
[342937854,1732211477758,-150.0,0.00041556,2]
[342937855,1732211477768,-300.0,0.00041558,2]
[342937856,1732211477778,-150.0,0.00041577,2]
[342937857,1732211477790,-150.0,0.00041592,2]
[342937858,1732211477800,-178.24211786,0.00041596,2]
[342937859,1732211477809,-150.0,0.00041603,2]
[342937860,1732211477818,-150.0,0.00041603,2]
[342937861,1732211477828,-150.0,0.00041625,2]
[342937862,1732211477838,-150.0,0.00041633,2]
[342937863,1732211477848,-2267.8938323,0.00041633,15]
[342937864,1732211477858,-150.0,0.00041641,2]
[342937865,1732211477868,-500.0,0.00041643,11]
[342937866,1732211477877,-381.31803109,0.00041643,11]
[342937867,1732211477887,-500.0,0.00041643,11]
[342937868,1732211477898,-500.0,0.00041643,11]
[342937869,1732211477909,-500.0,0.00041643,11]
[342937870,1732211477918,-500.0,0.00041643,11]
[342937871,1732211477928,-500.0,0.00041643,11]
[342937872,1732211477937,-500.0,0.00041643,11]
[342937873,1732211477947,-500.0,0.00041643,11]
[342937874,1732211477957,-571.88,0.00041643,11]
[342937875,1732211477967,-500.0,0.00041643,11]
[342937876,1732211477977,-500.0,0.00041643,11]
[342937877,1732211477986,-500.0,0.00041643,11]
[342937878,1732211477996,-500.0,0.00041643,11]
[342937879,1732211478006,-514.2,0.00041643,11]
[342937880,1732211478015,-500.0,0.00041643,11]
[342937881,1732211478024,-500.0,0.00041643,11]
[342937882,1732211478036,-500.0,0.00041643,11]
[342937883,1732211478046,-500.0,0.00041643,11]
[342937884,1732211478056,-504.23,0.00041643,11]
[342937885,1732211478066,-601.33,0.00041643,11]
[342937886,1732211478076,-500.0,0.00041643,11]
[342937887,1732211478085,-500.0,0.00041643,11]
[342937888,1732211478095,-759.06,0.00041643,11]
[342937889,1732211478104,-500.0,0.00041643,11]
[342937890,1732211478118,-539.3,0.00041643,11]
[342937891,1732211478127,-500.0,0.00041643,11]
[342937892,1732211478137,-500.0,0.00041643,11]
[342937893,1732211478147,-500.0,0.00041643,11]
[342937894,1732211478158,-500.0,0.00041643,11]
[342937895,1732211478167,-500.0,0.00041643,11]
[342937896,1732211478177,-639.77,0.00041643,11]
[342937897,1732211478189,-574.77,0.00041643,11]
[342937898,1732211478198,-500.0,0.00041643,11]
[342937899,1732211478208,-500.0,0.00041643,11]
[342937900,1732211478218,-500.0,0.00041643,11]
[342937901,1732211478227,-201.08928706,0.00041643,11]
[342937902,1732211478236,-796.67,0.00041643,11]
[342937903,1732211478246,-500.0,0.00041643,11]
[342937904,1732211478256,-500.0,0.00041643,11]
[342937905,1732211478265,-655.27,0.00041643,11]
[342937906,1732211478274,-500.0,0.00041643,11]
[342937907,1732211478286,-500.0,0.00041643,11]
[342937908,1732211478296,-500.0,0.00041643,11]
[342937909,1732211478306,-811.35,0.00041643,11]
[342937910,1732211478315,-500.0,0.00041643,11]
[342937911,1732211478325,-500.0,0.00041643,11]
[342937912,1732211478335,-631.01902479,0.00041643,11]
[342937913,1732211478345,-500.0,0.00041643,11]
[342937914,1732211478355,-500.0,0.00041643,11]
[342937915,1732211478364,-516.06,0.00041643,11]
[342937916,1732211478374,-500.0,0.00041643,11]
[342937917,1732211478384,-500.0,0.00041643,11]
[342937918,1732211478395,-293.29596453,0.00041643,60]
[342937919,1732211478404,-528.86847468,0.00041643,11]
[342937920,1732211478414,-885.36,0.00041643,11]
[342937921,1732211478424,-500.0,0.00041643,11]
[342937922,1732211478434,-500.0,0.00041643,11]
[342937923,1732211478444,-960.07,0.00041643,11]
[342937924,1732211478453,-1376.4,0.00041643,11]
[342937925,1732211478463,-500.0,0.00041643,11]
[342937926,1732211478474,-500.0,0.00041643,11]
[342937927,1732211478484,-1190.0,0.00041643,11]
[342937928,1732211478494,-500.0,0.00041643,11]
[342937929,1732211478506,-805.46,0.00041643,11]
[342937930,1732211478516,-500.0,0.00041643,11]
[342937931,1732211478527,-1193.7,0.00041643,11]
[342937932,1732211478540,-5893.34,0.00041643,11]
[342937933,1732211478551,-582.49,0.00041643,11]
[342937934,1732211478561,-1226.36,0.00041643,11]
[342937935,1732211478572,-500.0,0.00041643,11]
[342937936,1732211478582,-714.78,0.00041643,11]
[342937937,1732211478592,-500.0,0.00041643,11]
[342937938,1732211478602,-760.28,0.00041643,11]
[342937939,1732211478612,-695.56,0.00041643,11]
[342937940,1732211478622,-503.16,0.00041643,11]
[342937941,1732211478632,-500.0,0.00041643,11]
[342937942,1732211478641,-887.75,0.00041643,11]
[342937943,1732211478651,-623.78,0.00041643,11]
[342937944,1732211478661,-1599.72,0.00041643,11]
[342937945,1732211478670,-509.1,0.00041643,11]
[342937946,1732211478681,-500.0,0.00041643,11]
[342937947,1732211478690,-749.44,0.00041643,11]
[342937948,1732211478700,-540.66,0.00041643,11]
[342937949,1732211478710,-728.65,0.00041643,11]
[342937950,1732211478720,-513.15,0.00041643,11]
[342937951,1732211478729,-500.0,0.00041643,11]
[342937952,1732211478740,-168.52685817,0.00041643,11]
[342937953,1732211478750,-500.0,0.00041643,11]
[342937954,1732211478759,-669.3,0.00041643,11]
[342937955,1732211478771,-500.0,0.00041643,11]
[342937956,1732211478783,-1678.44,0.00041643,11]
[342937957,1732211478792,-500.0,0.00041643,11]
[342937958,1732211478802,-500.0,0.00041643,11]
[342937959,1732211478812,-500.0,0.00041643,11]
[342937960,1732211478822,-169.62875213,0.00041643,11]
[342937961,1732211478831,-999.52,0.00041643,11]
[342937962,1732211478841,-1474.25,0.00041643,11]
[342937963,1732211478850,-1024.4,0.00041643,11]
[342937964,1732211478860,-1174.82,0.00041643,11]
[342937965,1732211478870,-500.0,0.00041643,11]
[342937966,1732211478879,-500.0,0.00041643,11]
[342937967,1732211478889,-500.0,0.00041643,11]
[342937968,1732211478899,-500.0,0.00041643,11]
[342937969,1732211478909,-637.7,0.00041643,11]
[342937970,1732211478919,-500.0,0.00041643,11]
[342937971,1732211478928,-500.0,0.00041643,11]
[342937972,1732211478937,-1921.22,0.00041643,11]
[342937973,1732211478947,-500.0,0.00041643,11]
[342937974,1732211478956,-763.05,0.00041643,11]
[342937975,1732211478966,-761.29,0.00041643,11]
[342937976,1732211478975,-548.27,0.00041643,11]
[342937977,1732211478984,-500.0,0.00041643,11]
[342937978,1732211478994,-579.96,0.00041643,11]
[342937979,1732211479004,-500.0,0.00041643,11]
[342937980,1732211479014,-500.0,0.00041643,11]
[342937981,1732211479024,-518.1,0.00041643,11]
[342937982,1732211479037,-556.45,0.00041643,11]
[342937983,1732211479048,-500.0,0.00041643,11]
[342937984,1732211479057,-500.0,0.00041643,7]
[342937985,1732211479067,-643.58,0.00041643,11]
[342937986,1732211479077,-987.26,0.00041643,11]
[342937987,1732211479086,-681.75,0.00041643,11]
[342937988,1732211479096,-566.21,0.00041643,11]
[342937989,1732211479106,-500.0,0.00041643,11]
[342937990,1732211479117,-317.22,0.00041643,11]
[342937991,1732211479129,-2074.05,0.00041643,11]
[342937992,1732211479138,-500.0,0.00041643,11]
[342937993,1732211479148,-7086.76,0.00041643,2]
[342937994,1732211479158,-500.0,0.00041643,11]
[342937995,1732211479168,-5640.54,0.00041643,11]
[342937996,1732211479178,-536.96,0.00041643,11]
[342937997,1732211479187,-500.0,0.00041643,11]
[342937998,1732211479198,-500.0,0.00041643,11]
[342937999,1732211479208,-500.0,0.00041643,11]
[342938000,1732211479217,-500.0,0.00041643,11]
[342938001,1732211479227,-626.13,0.00041643,11]
[342938002,1732211479236,-500.0,0.00041643,11]
[342938003,1732211479245,-500.0,0.00041643,11]
[342938004,1732211479255,-1500.0,0.00041644,7]
[342938005,1732211479264,-150.0,0.00041648,2]
[342938006,1732211479274,-150.0,0.00041648,2]
[342938007,1732211479285,-150.0,0.00041654,2]
[342938008,1732211479294,-150.0,0.0004166,2]
[342938009,1732211479304,-150.0,0.00041667,2]
[342938010,1732211479313,-150.0,0.00041671,2]
[342938011,1732211479324,-150.0,0.00041675,2]
[342938012,1732211479334,-150.0,0.00041682,2]
[342938013,1732211479344,-150.0,0.00041684,2]
[342938014,1732211479354,-150.0,0.00041699,2]
[342938015,1732211479364,-150.0,0.00041732,2]
[342938016,1732211479373,-150.0,0.00041743,2]
[342938017,1732211479383,-150.0,0.00041748,2]
[342938018,1732211479393,-172.264,0.0004176,120]
[342938019,1732211479403,-150.0,0.0004176,2]
[342938020,1732211479412,-150.0,0.0004177,2]
[342938021,1732211479422,-150.0,0.00041772,2]
[342938022,1732211479432,-150.0,0.00041775,2]
[342938023,1732211479442,-150.0,0.00041778,2]
[342938024,1732211479454,-150.0,0.00041779,2]
[342938025,1732211479465,-150.0,0.00041782,2]
[342938026,1732211479475,-150.0,0.00041784,2]
[342938027,1732211479485,-150.0,0.00041807,2]
[342938028,1732211479494,-150.0,0.00041821,2]
[342938029,1732211479504,-150.0,0.00041826,2]
[342938030,1732211479514,-150.0,0.00041827,2]
[342938031,1732211479524,-150.0,0.00041837,2]
[342938032,1732211479535,-150.0,0.00041845,2]
[342938033,1732211479545,-150.0,0.00041874,2]
[342938034,1732211479555,-150.0,0.00041876,2]
[342938035,1732211479564,-150.0,0.00041882,2]
[342938036,1732211479574,-150.0,0.00041887,2]
[342938037,1732211479583,-1198.7448,0.00041888,30]
[342938038,1732211479593,-1518.25046879,0.00041899,2]
[342938039,1732211479603,-150.0,0.000419,2]
[342938040,1732211479612,-12936.8313182,0.00041914,2]
[342938041,1732211479621,-1196.0331787,0.00041914,2]
[342938042,1732211479631,-2077.6997904,0.00041914,2]
[342938043,1732211479640,-500.0,0.00041917,11]
[342938044,1732211479651,-500.0,0.00041917,11]
[342938045,1732211479660,-500.0,0.00041917,11]
[342938046,1732211479669,-500.0,0.00041917,11]
[342938047,1732211479679,-500.0,0.00041917,11]
[342938048,1732211479688,-500.0,0.00041917,11]
[342938049,1732211479697,-500.0,0.00041917,11]
[342938050,1732211479706,-500.0,0.00041917,11]
[342938051,1732211479716,-571.88,0.00041917,11]
[342938052,1732211479726,-500.0,0.00041917,11]
[342938053,1732211479735,-596.61755541,0.00041917,11]
[342938054,1732211479919,-500.0,0.00041917,120]
[342938055,1732211479929,-500.0,0.00041917,120]
[342938056,1732211479938,-500.0,0.00041917,120]
[342938057,1732211479947,-500.0,0.00041917,120]
[342938058,1732211479956,-500.0,0.00041917,120]
[342938059,1732211479966,-500.0,0.00041917,120]
[342938060,1732211479975,-500.0,0.00041917,120]
[342938061,1732211479984,-500.0,0.00041917,120]
[342938062,1732211479994,-500.0,0.00041917,120]
[342938063,1732211480003,-500.0,0.00041917,120]
[342938064,1732211480012,-500.0,0.00041917,120]
[342938065,1732211480021,-500.0,0.00041917,120]
[342938066,1732211480033,-500.0,0.00041917,120]
[342938067,1732211480042,-500.0,0.00041917,120]
[342938068,1732211480052,-500.0,0.00041917,120]
[342938069,1732211480061,-500.0,0.00041917,120]
[342938070,1732211480070,-500.0,0.00041917,120]
[342938071,1732211480079,-500.0,0.00041917,120]
[342938072,1732211480088,-500.0,0.00041917,120]
[342938073,1732211480097,-500.0,0.00041917,120]
[342938074,1732211480106,-500.0,0.00041917,120]
[342938075,1732211480120,-500.0,0.00041917,120]
[342938076,1732211480130,-500.0,0.00041917,120]
[342938077,1732211480139,-500.0,0.00041917,120]
[342938078,1732211480148,-500.0,0.00041917,11]
[342938079,1732211480158,-500.0,0.00041917,120]
[342938080,1732211480168,-500.0,0.00041917,120]
[342938081,1732211480176,-500.0,0.00041917,120]
[342938082,1732211480185,-500.0,0.00041917,120]
[342938083,1732211480196,-500.0,0.00041917,120]
[342938084,1732211480205,-500.0,0.00041917,120]
[342938085,1732211480215,-500.0,0.00041917,120]
[342938086,1732211480224,-500.0,0.00041917,120]
[342938087,1732211480233,-500.0,0.00041917,120]
[342938088,1732211480242,-500.0,0.00041917,120]
[342938089,1732211480251,-500.0,0.00041917,120]
[342938090,1732211480260,-500.0,0.00041917,120]
[342938091,1732211480269,-500.0,0.00041917,120]
[342938092,1732211480279,-500.0,0.00041917,120]
[342938093,1732211480291,-500.0,0.00041917,120]
[342938094,1732211480300,-500.0,0.00041917,120]
[342938095,1732211480309,-500.0,0.00041917,120]
[342938096,1732211480319,-500.0,0.00041917,120]
[342938097,1732211480328,-500.0,0.00041917,120]
[342938098,1732211480338,-500.0,0.00041917,120]
[342938099,1732211480347,-500.0,0.00041917,120]
[342938100,1732211480357,-500.0,0.00041917,120]
[342938101,1732211480366,-500.0,0.00041917,120]
[342938102,1732211480376,-500.0,0.00041917,120]
[342938103,1732211480386,-500.0,0.00041917,120]
[342938104,1732211480397,-500.0,0.00041917,120]
[342938105,1732211480407,-500.0,0.00041917,120]
[342938106,1732211480417,-500.0,0.00041917,120]
[342938107,1732211480427,-500.0,0.00041917,120]
[342938108,1732211480437,-500.0,0.00041917,120]
[342938109,1732211480447,-500.0,0.00041917,120]
[342938110,1732211480456,-500.0,0.00041917,11]
[342938111,1732211480465,-500.0,0.00041917,120]
[342938112,1732211480475,-500.0,0.00041917,120]
[342938113,1732211480484,-500.0,0.00041917,120]
[342938114,1732211480494,-500.0,0.00041917,120]
[342938115,1732211480503,-500.0,0.00041917,120]
[342938116,1732211480512,-500.0,0.00041917,120]
[342938117,1732211480522,-500.0,0.00041917,120]
[342938118,1732211480533,-500.0,0.00041917,120]
[342938119,1732211480542,-500.0,0.00041917,120]
[342938120,1732211480552,-500.0,0.00041917,120]
[342938121,1732211480561,-500.0,0.00041917,120]
[342938122,1732211480571,-500.0,0.00041917,120]
[342938123,1732211480580,-500.0,0.00041917,120]
[342938124,1732211480589,-500.0,0.00041917,120]
[342938125,1732211480599,-500.0,0.00041917,120]
[342938126,1732211480608,-500.0,0.00041917,120]
[342938127,1732211480618,-500.0,0.00041917,120]
[342938128,1732211480627,-500.0,0.00041917,120]
[342938129,1732211480637,-500.0,0.00041917,120]
[342938130,1732211480647,-500.0,0.00041917,120]
[342938131,1732211480658,-500.0,0.00041917,120]
[342938132,1732211480667,-500.0,0.00041917,120]
[342938133,1732211480677,-500.0,0.00041917,120]
[342938134,1732211480687,-500.0,0.00041917,120]
[342938135,1732211480696,-500.0,0.00041917,120]
[342938136,1732211480705,-500.0,0.00041917,120]
[342938137,1732211480715,-500.0,0.00041917,120]
[342938138,1732211480724,-500.0,0.00041917,120]
[342938139,1732211480733,-500.0,0.00041917,120]
[342938140,1732211480742,-500.0,0.00041917,120]
[342938141,1732211480751,-500.0,0.00041917,120]
[342938142,1732211480760,-500.0,0.00041917,120]
[342938143,1732211480769,-500.0,0.00041917,120]
[342938144,1732211480780,-500.0,0.00041917,120]
[342938145,1732211480790,-500.0,0.00041917,120]
[342938146,1732211480800,-500.0,0.00041917,120]
[342938147,1732211480809,-500.0,0.00041917,120]
[342938148,1732211480818,-500.0,0.00041917,120]
[342938149,1732211480827,-500.0,0.00041917,120]
[342938150,1732211480836,-500.0,0.00041917,120]
[342938151,1732211480845,-500.0,0.00041917,120]
[342938152,1732211480855,-500.0,0.00041917,120]
[342938153,1732211480864,-500.0,0.00041917,120]
[342938154,1732211480873,-500.0,0.00041917,120]
[342938155,1732211480882,-500.0,0.00041917,120]
[342938156,1732211480893,-500.0,0.00041917,120]
[342938157,1732211480901,-500.0,0.00041917,120]
[342938158,1732211480911,-514.2,0.00041917,11]
[342938159,1732211480921,-500.0,0.00041917,11]
[342938160,1732211480930,-418.30107129,0.00041917,11]
[342938161,1732211480940,-500.0,0.00041917,11]
[342938162,1732211480949,-500.0,0.00041917,11]
[342938163,1732211480959,-500.0,0.00041917,120]
[342938164,1732211480970,-504.23,0.00041917,11]
[342938165,1732211480979,-601.33,0.00041917,11]
[342938166,1732211480988,-500.0,0.00041917,11]
[342938167,1732211480998,-500.0,0.00041917,11]
[342938168,1732211481007,-759.06,0.00041917,11]
[342938169,1732211481016,-500.0,0.00041917,11]
[342938170,1732211481026,-539.3,0.00041917,11]
[342938171,1732211481036,-500.0,0.00041917,11]
[342938172,1732211481045,-500.0,0.00041917,11]
[342938173,1732211481055,-635.13516182,0.00041917,11]
[342938174,1732211481064,-500.0,0.00041917,11]
[342938175,1732211481073,-500.0,0.00041917,11]
[342938176,1732211481082,-639.77,0.00041917,11]
[342938177,1732211481090,-574.77,0.00041917,11]
[342938178,1732211481099,-500.0,0.00041917,11]
[342938179,1732211481108,-500.0,0.00041917,11]
[342938180,1732211481117,-500.0,0.00041917,11]
[342938181,1732211481131,-796.67,0.00041917,11]
[342938182,1732211481140,-500.0,0.00041917,11]
[342938183,1732211481149,-500.0,0.00041917,11]
[342938184,1732211481158,-655.27,0.00041917,11]
[342938185,1732211481167,-500.0,0.00041917,11]
[342938186,1732211481176,-500.0,0.00041917,11]
[342938187,1732211481185,-500.0,0.00041917,11]
[342938188,1732211481195,-811.35,0.00041917,11]
[342938189,1732211481204,-500.0,0.00041917,11]
[342938190,1732211481214,-500.0,0.00041917,11]
[342938191,1732211481223,-500.0,0.00041917,11]
[342938192,1732211481232,-500.0,0.00041917,120]
[342938193,1732211481241,-500.0,0.00041917,120]
[342938194,1732211481249,-500.0,0.00041917,120]
[342938195,1732211481258,-500.0,0.00041917,120]
[342938196,1732211481267,-500.0,0.00041917,120]
[342938197,1732211481276,-500.0,0.00041917,120]
[342938198,1732211481288,-500.0,0.00041917,120]
[342938199,1732211481298,-500.0,0.00041917,120]
[342938200,1732211481308,-500.0,0.00041917,120]
[342938201,1732211481317,-500.0,0.00041917,11]
[342938202,1732211481326,-500.0,0.00041917,120]
[342938203,1732211481335,-500.0,0.00041917,120]
[342938204,1732211481344,-500.0,0.00041917,120]
[342938205,1732211481353,-500.0,0.00041917,120]
[342938206,1732211481362,-500.0,0.00041917,120]
[342938207,1732211481372,-500.0,0.00041917,120]
[342938208,1732211481381,-500.0,0.00041917,120]
[342938209,1732211481390,-500.0,0.00041917,120]
[342938210,1732211481403,-500.0,0.00041917,120]
[342938211,1732211481419,-500.0,0.00041917,120]
[342938212,1732211481434,-500.0,0.00041917,120]
[342938213,1732211481446,-500.0,0.00041917,120]
[342938214,1732211481461,-500.0,0.00041917,120]
[342938215,1732211481476,-500.0,0.00041917,120]
[342938216,1732211481492,-500.0,0.00041917,120]
[342938217,1732211481507,-500.0,0.00041917,120]
[342938218,1732211481521,-500.0,0.00041917,120]
[342938219,1732211481537,-500.0,0.00041917,120]
[342938220,1732211481551,-500.0,0.00041917,120]
[342938221,1732211481566,-500.0,0.00041917,120]
[342938222,1732211481580,-500.0,0.00041917,120]
[342938223,1732211481595,-500.0,0.00041917,120]
[342938224,1732211481609,-500.0,0.00041917,120]
[342938225,1732211481622,-500.0,0.00041917,120]
[342938226,1732211481637,-500.0,0.00041917,120]
[342938227,1732211481650,-500.0,0.00041917,120]
[342938228,1732211481664,-500.0,0.00041917,120]
[342938229,1732211481676,-500.0,0.00041917,120]
[342938230,1732211481691,-500.0,0.00041917,120]
[342938231,1732211481704,-500.0,0.00041917,120]
[342938232,1732211481715,-500.0,0.00041917,120]
[342938233,1732211481727,-500.0,0.00041917,120]
[342938234,1732211481742,-500.0,0.00041917,120]
[342938235,1732211481755,-500.0,0.00041917,120]
[342938236,1732211481767,-516.06,0.00041917,11]
[342938237,1732211481778,-500.0,0.00041917,120]
[342938238,1732211481796,-500.0,0.00041917,120]
[342938239,1732211481809,-500.0,0.00041917,120]
[342938240,1732211481820,-500.0,0.00041917,120]
[342938241,1732211481832,-500.0,0.00041917,120]
[342938242,1732211481844,-500.0,0.00041917,11]
[342938243,1732211481856,-500.0,0.00041917,120]
[342938244,1732211481868,-500.0,0.00041917,120]
[342938245,1732211481880,-500.0,0.00041917,120]
[342938246,1732211481892,-500.0,0.00041917,120]
[342938247,1732211481904,-500.0,0.00041917,120]
[342938248,1732211481917,-500.0,0.00041917,120]
[342938249,1732211481930,-500.0,0.00041917,120]
[342938250,1732211481942,-500.0,0.00041917,120]
[342938251,1732211481954,-500.0,0.00041917,120]
[342938252,1732211481967,-500.0,0.00041917,120]
[342938253,1732211481978,-500.0,0.00041917,120]
[342938254,1732211481991,-500.0,0.00041917,120]
[342938255,1732211482003,-500.0,0.00041917,11]
[342938256,1732211482016,-500.0,0.00041917,120]
[342938257,1732211482028,-500.0,0.00041917,120]
[342938258,1732211482044,-500.0,0.00041917,120]
[342938259,1732211482058,-500.0,0.00041917,120]
[342938260,1732211482071,-500.0,0.00041917,120]
[342938261,1732211482084,-500.0,0.00041917,120]
[342938262,1732211482097,-500.0,0.00041917,120]
[342938263,1732211482109,-500.0,0.00041917,120]
[342938264,1732211482124,-500.0,0.00041917,120]
[342938265,1732211482137,-500.0,0.00041917,120]
[342938266,1732211482149,-500.0,0.00041917,120]
[342938267,1732211482163,-500.0,0.00041917,120]
[342938268,1732211482176,-500.0,0.00041917,120]
[342938269,1732211482188,-500.0,0.00041917,120]
[342938270,1732211482202,-500.0,0.00041917,120]
[342938271,1732211482215,-500.0,0.00041917,120]
[342938272,1732211482227,-885.36,0.00041917,11]
[342938273,1732211482240,-500.0,0.00041917,11]
[342938274,1732211482251,-500.0,0.00041917,11]
[342938275,1732211482264,-960.07,0.00041917,11]
[342938276,1732211482277,-1376.4,0.00041917,11]
[342938277,1732211482292,-331.38257429,0.00041917,11]
[342938278,1732211482304,-500.0,0.00041917,11]
[342938279,1732211482317,-769.84628348,0.00041917,11]
[342938280,1732211482504,-420.15371652,0.00041917,11]
[342938281,1732211482515,-500.0,0.00041917,11]
[342938282,1732211482525,-805.46,0.00041917,11]